[Event "Icelandic Championship 2024"]
[Site "Mosfellsbaer"]
[Date "2024.04.21"]
[Round "6.2"]
[White "Gretarsson, Helgi Ass"]
[Black "Heimisson, Hilmir Freyr"]
[Result "1-0"]
[ECO "D12"]
[WhiteElo "2468"]
[BlackElo "2361"]
[Annotator "TA"]
[PlyCount "155"]
[EventDate "2024.04.16"]
[EventType "tourn"]
[EventCountry "ISL"]
[SourceTitle "playchess.com"]
[Source "ChessBase"]
[SourceQuality "1"]
[TimeControl "40/5400+30:1800+30"]

{[%evp 55,155,4,2,0,0,0,0,0,0,0,0,0,77,69,82,75,66,76,78,53,70,78,184,121,116,113,229,211,226,236,222,133,133,133,133,133,133,142,189,128,128,135,260,275,267,255,248,0,128,0,265,265,256,213,262,265,308,317,285,259,283,237,308,307,319,322,315,320,310,309,295,287,29968,29969,29961,29961,29969,29973,29973,29975,29978,29976,29976,29977,29976,29978,29978,29979,29979,29980,29980,29981,29981,29982,29980,29983,29983,29984,29985,29986,29986,29987]} 1. d4 {[%emt 0:00:03]} d5 {[%emt 0:03:02]} 2. c4 {[%emt 0:00:06]} c6 {[%emt 0:00:10]} 3. Nc3 {[%emt 0:00:15]} Nf6 {[%emt 0:00:21]} 4. e3 {[%emt 0:00:05]} Bf5 {[%emt 0:00:38]} 5. Nf3 {[%emt 0:00:24]} e6 {[%emt 0:00:19]} 6. Nh4 {[%emt 0:00:08]} Bg6 {[%emt 0:00:09]} 7. Qb3 {[%emt 0:09:13] D12: Slav Defence: 3 Nf3 Nf6 4 e3 Bf5.} Qc7 {[%emt 0:00:14] 7...Qc7 is better than 7...Qb6.} 8. Bd2 {[%emt 0:00:30]} Ne4 {[%emt 0:00:10]} 9. Nxg6 {[%emt 0:13:08]} Nxd2 {[%emt 0:00:17]} 10. Kxd2 {[%emt 0:00:06]} hxg6 {[%emt 0:00:10]} 11. Rc1 {[%emt 0:00:14]} dxc4 {[%emt 0:17:27]} 12. Bxc4 {[%emt 0:00:29]} Nd7 {[%emt 0:00:43]} 13. h4 $146 {[%emt 0:18:27]} ({Predecessor:} 13. h3 O-O-O 14. Kc2 Qa5 15. Kb1 Be7 16. Rhd1 Kb8 17. Bd3 Nf6 18. Ne4 Qd5 19. Qxd5 Nxd5 {½-½ Baumgartner,U (2238)-Bergmann,M (2449) LSS WC-2009-T-00006 2008}) 13... Be7 {[%emt 0:09:59]} 14. g3 {[%emt 0:00:24]} Nb6 {[%emt 0:02:26]} 15. Bd3 {[%emt 0:07:27]} a5 {[%emt 0:12:14]} 16. a3 {[%emt 0:08:01]} a4 {[%emt 0:03:32]} 17. Qd1 {[%emt 0:00:26]} e5 {[%emt 0:00:11]} 18. dxe5 {[%emt 0:03:27]} Qxe5 {[%emt 0:00:55]} 19. Qg4 {[%emt 0:03:59]} Nd7 {[%emt 0:06:47]} 20. Ke2 {[%emt 0:09:23]} Qf6 {[%emt 0:02:57]} 21. Bb1 {[%emt 0:03:32]} Rh5 {[%emt 0:11:57]} 22. Rhd1 {[%emt 0:06:04]} Nc5 {[%emt 0:04:44]} 23. Ba2 {[%emt 0:00:19]} Kf8 {[%emt 0:01:30]} 24. Rd2 {[%emt 0:01:11]} Qe5 {[%emt 0:07:48]} 25. Qc4 {[%emt 0:04:44]} Qf6 {[%emt 0:02:14]} 26. Qg4 {[%emt 0:02:48]} Qe5 {[%emt 0:00:57]} 27. Qc4 {[%emt 0:01:00]} Qf6 {[%emt 0:01:45]} 28. Rcd1 {[%emt 0:02:23]} Re8 {[%emt 0:03:10]} 29. Nxa4 {[%emt 0:03:56]} Rf5 $1 {[%emt 0:02:45]} 30. Kf1 {[%emt 0:00:29]} b5 $1 {[%emt 0:01:01]} 31. Nxc5 $1 {[%emt 0:01:26]} Bxc5 {[%emt 0:00:11]} 32. Qc2 {[%emt 0:00:08]} Bxe3 {[%emt 0:04:27]} 33. Re2 {[%emt 0:00:03]} Rc5 {[%emt 0:00:52]} (33... c5 $11 {remains equal.}) 34. Qb3 $1 $16 {[%emt 0:01:33]} Qf3 $1 {[%emt 0:00:51]} 35. Qxf7+ $1 {[%emt 0:00:05]} ({But not} 35. Rxe3 $6 Rxe3 36. Qxf7+ Qxf7 $11) 35... Qxf7 {[%emt 0:00:04]} 36. Bxf7 {[%emt 0:00:05]} Kxf7 {[%emt 0:00:12]} 37. fxe3 {[%emt 0:00:13]} ({Much worse is} 37. Rxe3 $6 Rxe3 38. fxe3 g5 $11) (37. Rd7+ $5 Kf8 (37... Ke6 38. Rxg7 Kf6 39. Rd7 $16) 38. fxe3 $16 (38. Rxe3 Rxe3 39. fxe3 Rc2 $14)) 37... Ree5 {[%emt 0:00:34]} 38. Rd7+ {[%emt 0:00:57]} Kf6 {[%emt 0:00:32]} (38... Re7 $16 39. Rd4 g5) 39. e4 {[%emt 0:01:07]} (39. Rf2+ $18 Ke6 40. Rxg7) 39... g5 {[%emt 0:00:58]} 40. h5 {[%emt 0:02:01]} Re7 {[%emt 0:00:39]} (40... Rc1+ $16 {keeps fighting.} 41. Kg2 g4) 41. Rf2+ $18 {[%emt 0:08:25]} Ke6 {[%emt 0:00:07]} 42. Rxe7+ {[%emt 0:00:15]} Kxe7 {[%emt 0:00:06]} 43. g4 {[%emt 0:00:15]} ({Better is} 43. Rf5 $18 Rc1+ 44. Kf2) 43... Rc4 $16 {[%emt 0:04:22]} 44. Rf5 {[%emt 0:09:12]} Rxe4 {[%emt 0:06:15]} 45. Rxg5 {[%emt 0:00:06]} Kf7 {[%emt 0:00:14]} 46. Kf2 {[%emt 0:05:11]} Rc4 {[%emt 0:09:47]} 47. Ke3 {[%emt 0:00:52]} (47. Rf5+ $18 Kg8 48. Kg3) 47... Rc2 $16 {[%emt 0:02:20]} 48. Rf5+ {[%emt 0:01:30]} Kg8 {[%emt 0:00:17]} (48... Ke6 $16) 49. Rf2 $1 $18 {[%emt 0:00:35]} Rc4 {[%emt 0:00:07]} 50. Rf4 $1 {[%emt 0:00:31]} Rc2 {[%emt 0:00:06]} 51. Rf2 {[%emt 0:00:11]} (51. Rb4 $1 $18) 51... Rc4 $1 $16 {[%emt 0:00:06]} 52. Rf4 {[%emt 0:01:19]} (52. g5 $16) 52... Rc2 $18 {[%emt 0:01:21]} 53. Rb4 $1 {[%emt 0:00:10]} Kf7 {[%emt 0:01:46]} 54. Kd3 {[%emt 0:00:35]} Rc1 {[%emt 0:01:07]} 55. Rf4+ {[%emt 0:03:25]} Ke6 {[%emt 0:04:01]} 56. Rf5 {[%emt 0:00:11]} Rc4 {[%emt 0:02:43]} 57. Rg5 {[%emt 0:00:56]} Kf6 {[%emt 0:00:31]} 58. Rg6+ {[%emt 0:00:11]} Kf7 {[%emt 0:00:01]} 59. b3 {[%emt 0:01:45]} Rc1 {[%emt 0:00:26]} 60. Kd2 {[%emt 0:00:15]} Rc5 {[%emt 0:00:16]} 61. Rd6 {[%emt 0:00:58]} Ke7 {[%emt 0:00:59]} 62. Rd4 {[%emt 0:01:06]} Ke6 {[%emt 0:00:46]} 63. Re4+ {[%emt 0:01:05]} Kf6 $2 {[%emt 0:00:20]} (63... Kd7 $18 64. b4 Rd5+ 65. Ke3 c5 66. bxc5 Rxc5) 64. Rf4+ {[%emt 0:00:09]} Ke6 {[%emt 0:01:51]} 65. Rf5 {[%emt 0:00:09]} Rxf5 {[%emt 0:00:25]} 66. gxf5+ {[%emt 0:00:01]} Kxf5 {[%emt 0:00:08]} 67. a4 {[%emt 0:00:03]} Ke5 {[%emt 0:00:57]} 68. Kc3 {[%emt 0:01:20]} Kd5 {[%emt 0:01:07] [#]} 69. Kb4 $1 {[%emt 0:00:49]} bxa4 {[%emt 0:00:21]} 70. bxa4 {[%emt 0:00:01]} Kd4 {[%emt 0:00:06]} 71. a5 {[%emt 0:00:07]} c5+ {[%emt 0:00:04] [#]} 72. Ka3 $1 {[%emt 0:00:06]} Kd5 {[%emt 0:03:00]} 73. Kb3 {[%emt 0:00:07]} c4+ {[%emt 0:00:22]} 74. Kc3 {[%emt 0:00:04]} Kc5 {[%emt 0:00:04]} 75. a6 {[%emt 0:00:04]} Kb6 {[%emt 0:00:04]} 76. Kxc4 {[%emt 0:00:04]} Kxa6 {[%emt 0:00:02]} 77. Kd5 {[%emt 0:00:05]} Kb7 {[%emt 0:00:04]} 78. Ke6 {[%emt 0:00:04]} 1-0

[Event "Icelandic Championship 2024"]
[Site "Mosfellsbaer"]
[Date "2024.04.21"]
[Round "6.3"]
[White "Domalchuk-Jonasson, Aleksandr"]
[Black "Prudnykova, Olga"]
[Result "1-0"]
[ECO "A48"]
[WhiteElo "2368"]
[BlackElo "2263"]
[Annotator "TA"]
[PlyCount "97"]
[EventDate "2024.04.16"]
[EventType "tourn"]
[EventCountry "ISL"]
[SourceTitle "playchess.com"]
[Source "ChessBase"]
[SourceQuality "1"]
[TimeControl "40/5400+30:1800+30"]

{[%evp 9,97,32,23,21,22,11,20,0,0,-8,11,23,8,1,8,0,10,11,12,16,30,26,50,11,42,33,139,137,152,144,244,230,244,234,230,147,153,97,368,360,427,75,448,438,506,484,1713,1660,1445,1360,1243,1240,1049,982,29964,29968,29966,29969,29969,29973,29973,198,29973,29974,29975,29977,29977,29978,29978,29979,29980,29981,29981,29982,29982,29983,29983,29984,29984,29985,29990,29991,29991,29992,29992,29993,29995,29996,29996,29997]} 1. d4 {[%emt 0:00:04]} Nf6 {[%emt 0:00:04][%cal Bg8f6,Bf6e4,Be4d2][%mdl 32]} 2. Nf3 {[%emt 0:00:13]} g6 {[%emt 0:00:12]} 3. Nbd2 {[%emt 0:00:17]} Bg7 {[%emt 0:01:34]} 4. e4 {[%emt 0:00:13][%cal Be2e4,Be4e5][%mdl 32]} d5 {[%emt 0:00:54]} 5. e5 {[%emt 0:02:54]} Ne4 {[%emt 0:04:54]} 6. Bd3 {[%emt 0:08:13]} Nxd2 {[%emt 0:02:03]} 7. Bxd2 {[%emt 0:00:23]} c5 {[%emt 0:01:31]} 8. c3 {[%emt 0:15:11] The position is equal.} Nc6 {[%emt 0:05:46]} 9. dxc5 {[%emt 0:10:13]} Nxe5 {[%emt 0:03:15]} 10. Nxe5 {[%emt 0:00:42]} Bxe5 {[%emt 0:00:04]} 11. f4 {[%emt 0:08:54]} Bg7 {[%emt 0:02:11]} 12. Qf3 {[%emt 0:01:26]} O-O {[%emt 0:02:47]} 13. O-O {[%emt 0:04:51]} b6 {[%emt 0:12:57]} 14. Be3 $1 {[%emt 0:07:44]} bxc5 {[%emt 0:01:32]} 15. Bxc5 {[%emt 0:00:25]} Rb8 {[%emt 0:09:55]} 16. Rae1 {[%emt 0:03:34][%cal Ba1e1,Be1e3,Be3g3][%mdl 32]} Re8 {[%emt 0:11:39]} 17. f5 {[%emt 0:03:42] fxg6 is the strong threat.} Bxf5 {[%emt 0:07:41]} (17... e5 $14) 18. Bxf5 $16 {[%emt 0:00:48]} (18. Bxa7 $2 Bxd3 (18... Rxb2 19. Bxf5 Rxa2 20. Bc5 $11) 19. Qxd3 Rxb2 $19) 18... gxf5 {[%emt 0:00:04]} 19. Qxf5 {[%emt 0:00:43]} (19. Bxa7 $6 Ra8 20. Be3 e6 $11) 19... e5 {[%emt 0:01:20]} (19... Rxb2 $16 {was called for.} 20. Qxf7+ (20. Bxa7 Rf8 $14) 20... Kh8) 20. Qxf7+ $18 {[%emt 0:01:25]} Kh8 {[%emt 0:00:03]} 21. Re3 {[%emt 0:08:34]} (21. Bxa7 Rxb2 22. Qh5 Rxa2 $11) 21... Rxb2 {[%emt 0:05:46]} 22. Rg3 {[%emt 0:01:49]} (22. Bxa7 $2 Re7 (22... Rxa2 23. Bb6 $14) 23. Qf5 Rxa7 $19) (22. Qxa7 Qc8 $14) 22... Rg8 {[%emt 0:00:24]} 23. h4 {[%emt 0:09:44] White has more active pieces.} (23. Bxa7 $6 Rxa2 24. Bc5 Ra6 $14) (23. Qxa7 Qc8 $16) ({Better is} 23. Rh3 {[%cal Oh3h7] Threatening mate with Rxh7+!} Qe8 24. Qxd5 (24. Qxa7 Qc8 $14)) 23... Bh6 $2 {[%emt 0:05:31][%mdl 8192] [#]} (23... Rb8 $16) 24. Bd6 $1 {[%emt 0:06:29][%mdl 512]} Re2 {[%emt 0:13:01][%cal Bb2e2,Be2e3,Be3g3][%mdl 32]} ({And not} 24... Rxg3 25. Bxe5+ (25. Qxd5 {is a self mate.} Be3+) (25. Qxd5 {leads to mate.} Be3+)) 25. Rxg8+ $40 {[%emt 0:03:13][%mdl 128] White wants a kill.} Qxg8 {[%emt 0:00:04] [#]} 26. Qf3 {[%emt 0:00:06]} (26. Qxa7 $2 Qxg2#) 26... Re3 {[%emt 0:02:09]} 27. Qf6+ {[%emt 0:00:12]} Qg7 {[%emt 0:01:30]} (27... Bg7 $142 28. Qe7 Rxc3 29. Bxe5 Rc8) 28. Qd8+ {[%emt 0:00:06]} Qg8 {[%emt 0:00:04]} 29. Bf8 {[%emt 0:01:11] Qf6+ would now be deadly.} Rg3 {[%emt 0:01:22]} 30. Qf6+ {[%emt 0:00:50]} Bg7 {[%emt 0:00:06]} 31. Bxg7+ {[%emt 0:00:24]} Rxg7 {[%emt 0:03:44][%mdl 4096] Endgame. KQR-KQR} 32. h5 {[%emt 0:01:01]} h6 {[%emt 0:00:48]} 33. Qxh6+ {[%emt 0:00:05]} Qh7 {[%emt 0:00:47]} 34. Rf8+ {[%emt 0:00:19]} Rg8 {[%emt 0:00:03]} 35. Qxh7+ {[%emt 0:00:39]} Kxh7 {[%emt 0:00:03]} 36. Rxg8 {[%emt 0:00:05] White mates.} Kxg8 {[%emt 0:00:01] KP-KP} 37. g4 {[%emt 0:00:15][%cal Bg2g4,Bg4g5,Bg5g6][%mdl 32]} Kg7 {[%emt 0:00:10]} 38. g5 {[%emt 0:00:13]} Kf7 {[%emt 0:00:32]} 39. Kf2 {[%emt 0:00:04]} Ke6 {[%emt 0:00:32]} 40. Kf3 {[%emt 0:00:19]} Kf5 {[%emt 0:00:14]} 41. g6 {[%emt 0:30:34]} Kf6 {[%emt 0:30:06]} 42. Kg4 {[%emt 0:00:07]} a6 {[%emt 0:00:27][%cal Ba7a6,Ba6a5][%mdl 32]} 43. a3 {[%emt 0:00:12][%cal Ba2a3,Ba3a4][%mdl 32]} a5 {[%emt 0:00:21]} 44. a4 {[%emt 0:00:13]} Kg7 {[%emt 0:00:17]} 45. Kg5 {[%emt 0:00:16]} e4 {[%emt 0:00:36][%cal Be5e4,Be4e3][%mdl 32]} 46. h6+ {[%emt 0:00:21][%cal Bh5h6,Bh6h7][%mdl 32]} Kg8 {[%emt 0:00:27]} 47. Kf6 {[%emt 0:01:12]} e3 {[%emt 0:00:04]} 48. h7+ {[%emt 0:00:04]} Kh8 {[%emt 0:00:03]} 49. Kf7 {[%emt 0:00:07] Weighted Error Value: White=0.07 (flawless) /Black=0.32.  Loses game:     	---       	Black=2      Mistake:       	White=1     	Black=3      Inaccurate:     	White=2     	Black=1      OK:         	White=5     	Black=5      Best:        	White=2     	Black=1      Strong:       	White=1     	---        Brilliant:      	White=1     	---} 1-0

[Event "Icelandic Championship 2024"]
[Site "Mosfellsbaer"]
[Date "2024.04.21"]
[Round "6.4"]
[White "Kjartansson, Gudmundur"]
[Black "Gretarsson, Hjorvar Steinn"]
[Result "1/2-1/2"]
[ECO "A11"]
[WhiteElo "2480"]
[BlackElo "2518"]
[Annotator "TA"]
[PlyCount "116"]
[EventDate "2024.04.16"]
[EventType "tourn"]
[EventCountry "ISL"]
[SourceTitle "playchess.com"]
[Source "ChessBase"]
[SourceQuality "1"]
[TimeControl "40/5400+30:1800+30"]

{[%evp 30,116,13,0,10,0,0,0,0,0,0,0,8,-4,0,0,0,0,0,0,0,-5,-4,-8,-12,-8,-5,-4,0,-48,0,0,0,0,0,-8,-8,-2,0,0,0,0,0,0,0,0,0,0,0,0,0,0,0,0,0,0,0,0,0,0,0,0,0,0,0,0,0,0,0,0,0,0,0,0,0,0,0,0,0,0,0,0,0,0,2,2,2,2,2]} 1. Nf3 {[%emt 0:00:03]} d5 {[%emt 0:08:14]} 2. g3 {[%emt 0:00:09]} c6 {[%emt 0:01:02]} 3. Bg2 {[%emt 0:03:38]} Bg4 {[%emt 0:01:02]} 4. c4 {[%emt 0:03:56]} e6 {[%emt 0:00:21]} 5. cxd5 {[%emt 0:00:36]} Bxf3 {[%emt 0:01:03]} 6. Bxf3 {[%emt 0:00:05]} cxd5 {[%emt 0:00:06]} 7. O-O {[%emt 0:02:22]} Nc6 {[%emt 0:02:19] The main line 7...Nc6 scores better than 7...Nf6.} 8. d4 {[%emt 0:00:49]} Nf6 {[%emt 0:01:25]} 9. Nc3 {[%emt 0:04:36]} Be7 {[%emt 0:00:44] A11: English Opening: 1...c6.} 10. b3 {[%emt 0:12:30]} Rc8 {[%emt 0:01:07]} 11. Bb2 {[%emt 0:00:17]} O-O {[%emt 0:04:23]} 12. e3 {[%emt 0:05:00]} a6 {[%emt 0:02:21]} 13. Qe2 {[%emt 0:05:29]} b5 {[%emt 0:02:17]} 14. Rfc1 {[%emt 0:02:43]} Qb6 {[%emt 0:02:52]} 15. Bg2 {[%emt 0:11:00]} Bd6 $146 {[%emt 0:08:47]} ({Predecessor:} 15... Rc7 16. g4 Rfc8 17. g5 Ne8 18. Bxd5 Bxg5 19. Qg4 Bxe3 20. fxe3 Nf6 21. Qg2 exd5 22. Nxd5 Nxd5 23. Qxd5 {0-1 Ftacnik,L (2558)-Azarov,S (2635) CZE-chT 1415 2014 (11.4)}) 16. Qe1 {[%emt 0:05:23]} Rfd8 {[%emt 0:07:42]} 17. Rc2 {[%emt 0:11:25]} Rc7 {[%emt 0:04:12]} 18. Rac1 {[%emt 0:02:33]} Rdc8 {[%emt 0:01:29]} (18... Nb4 $5 19. Rd2 $8 Bf8 $11) 19. Qd1 {[%emt 0:01:05]} Qa5 {[%emt 0:16:40]} 20. Nb1 {[%emt 0:03:39]} Qb6 {[%emt 0:01:51]} 21. Bc3 {[%emt 0:07:42]} Nb4 {[%emt 0:01:53]} 22. Bxb4 {[%emt 0:00:04]} Bxb4 {[%emt 0:00:05]} 23. Rxc7 {[%emt 0:00:24]} Rxc7 {[%emt 0:00:06]} 24. Rc2 {[%emt 0:00:41]} g6 {[%emt 0:05:31]} 25. a3 {[%emt 0:05:01]} Bd6 {[%emt 0:01:14]} 26. Qc1 {[%emt 0:00:42]} Rxc2 {[%emt 0:01:41]} 27. Qxc2 {[%emt 0:00:04]} Kg7 {[%emt 0:02:55]} 28. Bf1 {[%emt 0:00:29]} h5 {[%emt 0:02:02]} 29. h4 {[%emt 0:00:04]} (29. a4 $11) 29... e5 {[%emt 0:02:44]} (29... Qb8 $15 {was preferrable.} 30. f4 b4) 30. dxe5 $11 {[%emt 0:02:23]} Bxe5 {[%emt 0:00:07]} 31. Nd2 {[%emt 0:07:07]} d4 {[%emt 0:09:22]} 32. exd4 {[%emt 0:00:03]} Bxd4 {[%emt 0:01:54]} 33. Nf3 {[%emt 0:00:07]} Ng4 {[%emt 0:04:47]} 34. Nxd4 {[%emt 0:00:03]} Qxd4 {[%emt 0:00:04]} 35. a4 {[%emt 0:00:30]} bxa4 {[%emt 0:00:36]} 36. bxa4 {[%emt 0:00:03]} a5 {[%emt 0:00:05]} 37. Bb5 {[%emt 0:01:15]} Qb4 {[%emt 0:01:21]} 38. Kg2 {[%emt 0:00:57]} Ne5 {[%emt 0:00:26]} 39. Be2 {[%emt 0:00:55]} Qd4 {[%emt 0:00:06]} 40. Kg1 {[%emt 0:01:03]} Qb4 {[%emt 0:01:01]} 41. Kg2 {[%emt 0:30:04]} Nd7 {[%emt 0:31:18]} 42. Qd1 {[%emt 0:03:22]} Ne5 {[%emt 0:00:00]} 43. Qc2 {[%emt 0:00:00]} Qd4 {[%emt 0:00:00]} 44. Kg1 {[%emt 0:00:00]} Qa1+ {[%emt 0:00:00]} 45. Kg2 {[%emt 0:00:00]} Qa3 {[%emt 0:00:00]} 46. Kg1 {[%emt 0:00:00]} Nd7 {[%emt 0:00:00]} 47. Qc6 {[%emt 0:00:00]} Qa1+ {[%emt 0:00:00]} 48. Kg2 {[%emt 0:00:00]} Qd4 {[%emt 0:00:00]} 49. Bc4 {[%emt 0:00:00]} Nc5 {[%emt 0:00:00]} (49... Ne5 $5 50. Qd5 $8 Qc3 $11) 50. Bb5 {[%emt 0:00:00]} ({Don't go for} 50. Bxf7 $2 Kxf7 51. Qc7+ Kg8 52. Qxa5 Nxa4 $19 (52... Qxa4 53. Qxc5 Qd7 54. Qb6 $14)) 50... Ne4 {[%emt 0:00:00]} 51. Qc2 {[%emt 0:00:00]} Nc3 {[%emt 0:00:20]} 52. Bc6 {[%emt 0:00:02]} Qb4 {[%emt 0:00:34]} 53. Qd2 {[%emt 0:01:00]} Qc4 {[%emt 0:01:18]} 54. Qd7 {[%emt 0:00:22]} Qc5 {[%emt 0:00:14]} 55. Bf3 {[%emt 0:02:14]} Qb4 {[%emt 0:00:14]} 56. Qc7 {[%emt 0:01:17]} Qd4 {[%emt 0:01:25]} 57. Qxa5 {[%emt 0:00:04]} Nxa4 {[%emt 0:00:04]} 58. Qd5 {[%emt 0:00:16]} Qxd5 {[%emt 0:00:46]} 1/2-1/2

[Event "Icelandic Championship 2024"]
[Site "Mosfellsbaer"]
[Date "2024.04.21"]
[Round "6.5"]
[White "Stefansson, Vignir Vatnar"]
[Black "Ragnarsson, Dagur"]
[Result "1-0"]
[ECO "D43"]
[WhiteElo "2459"]
[BlackElo "2333"]
[Annotator "TA"]
[PlyCount "117"]
[EventDate "2024.04.16"]
[EventType "tourn"]
[EventCountry "ISL"]
[SourceTitle "playchess.com"]
[Source "ChessBase"]
[SourceQuality "1"]
[TimeControl "40/5400+30:1800+30"]

{[%evp 50,117,196,201,191,179,186,166,236,242,303,306,366,370,363,328,375,397,395,376,461,454,463,389,378,361,327,291,432,437,437,437,533,435,725,670,805,740,847,397,624,664,670,560,654,638,625,428,791,829,1623,1569,2845,2424,5559,5515,29946,12849,29974,29975,29975,29976,29976,29977,29977,29977,29977,29978,29977,29972]} 1. Nf3 {[%emt 0:00:01]} Nf6 {[%emt 0:01:50]} 2. d4 {[%emt 0:00:06]} d5 {[%emt 0:00:05]} 3. c4 {[%emt 0:00:04]} c6 {[%emt 0:00:04]} 4. Nc3 {[%emt 0:00:26]} e6 {[%emt 0:00:12]} 5. Qd3 {[%emt 0:00:04]} dxc4 {[%emt 0:02:52]} 6. Qxc4 {[%emt 0:00:07]} b5 {[%emt 0:00:19]} 7. Qd3 {[%emt 0:00:05]} Be7 {[%emt 0:04:15]} 8. e4 {[%emt 0:00:31] was the old line (8.g3). D43: Semi-Slav: 5 Bg5 h6.} b4 {[%emt 0:01:40]} 9. Na4 {[%emt 0:00:13]} O-O {[%emt 0:04:29]} 10. e5 $146 {[%emt 0:18:42]} ({Predecessor:} 10. Qc2 Qa5 11. b3 Ba6 12. Bxa6 Qxa6 13. Bg5 Nbd7 14. Ne5 Nxe5 15. dxe5 Nd5 16. exd5 Bxg5 {1-0 Navara,D (2720)-Korneev,O (2606) FRA-chT Top 16 GpB 2007 (4.1)}) 10... Nd5 {[%emt 0:23:00]} 11. h4 {[%emt 0:01:05]} f5 {[%emt 0:06:40]} 12. exf6 {[%emt 0:05:17]} Nxf6 {[%emt 0:01:27]} 13. Qc2 {[%emt 0:00:56]} Qa5 {[%emt 0:02:48]} 14. Bd2 {[%emt 0:02:39]} Ba6 {[%emt 0:01:20]} 15. Bxa6 {[%emt 0:01:09]} Qxa6 {[%emt 0:01:46]} 16. Ng5 {[%emt 0:01:47]} c5 {[%emt 0:12:12]} 17. Nxc5 {[%emt 0:01:02]} Bxc5 {[%emt 0:00:12]} 18. dxc5 {[%emt 0:00:31]} Nc6 {[%emt 0:00:11]} 19. Be3 {[%emt 0:03:24]} Ne5 {[%emt 0:13:53]} 20. Bd4 {[%emt 0:04:12]} Nd3+ {[%emt 0:06:46]} 21. Kd2 {[%emt 0:02:31]} Nf4 {[%emt 0:00:11]} 22. Bxf6 {[%emt 0:01:57]} Qe2+ {[%emt 0:00:06]} 23. Kc1 {[%emt 0:00:02]} Qxc2+ {[%emt 0:01:00]} 24. Kxc2 {[%emt 0:00:09]} gxf6 {[%emt 0:00:02]} 25. Ne4 {[%emt 0:00:40]} Rac8 {[%emt 0:00:02] [#]} 26. g3 $1 {[%emt 0:01:26]} Nd5 {[%emt 0:02:36]} 27. Kb3 {[%emt 0:00:56]} Rc6 {[%emt 0:02:09]} 28. Rac1 {[%emt 0:00:16]} Rfc8 {[%emt 0:06:12]} (28... f5 {was called for.}) 29. Nd6 $18 {[%emt 0:00:52]} R8c7 {[%emt 0:00:11]} 30. Nb5 {[%emt 0:01:23]} Re7 {[%emt 0:00:06]} 31. Rhd1 {[%emt 0:02:37]} Kf7 {[%emt 0:00:29]} 32. Nd4 {[%emt 0:00:16]} Rc8 {[%emt 0:00:09]} 33. Nf5 {[%emt 0:01:14]} exf5 {[%emt 0:00:14]} 34. Rxd5 {[%emt 0:00:04]} f4 {[%emt 0:00:16]} 35. gxf4 {[%emt 0:00:35]} (35. Kxb4 Re2 36. Ka3 (36. gxf4 Rxb2+ 37. Ka3 Rxf2 $18) 36... Ke6 37. Rd6+ Ke7 $18) 35... Re2 {[%emt 0:00:19]} 36. Rc2 {[%emt 0:01:08]} (36. Kxb4 Rxb2+ 37. Ka3 Rb5 38. Rd7+ Ke6 39. Rxh7 (39. Rxa7 Rcxc5 40. Rxc5 Rxc5 $16) 39... Rcxc5 40. Rxc5 Rxc5 $16) 36... Rxc2 {[%emt 0:00:08]} 37. Kxc2 {[%emt 0:00:03]} Ke6 {[%emt 0:00:10]} 38. Rh5 {[%emt 0:00:04]} (38. Rd6+ Ke7 39. Kd3 (39. Rd5 Ke6 $18) 39... Rxc5 $18) 38... f5 {[%emt 0:00:35]} (38... h6 $142 39. Kb3 (39. Rxh6 Rxc5+ 40. Kb3 Rf5 $16) 39... Rh8 40. Kxb4 Rb8+ 41. Kc3 Rh8) 39. Kb3 $18 {[%emt 0:01:18]} (39. Rxh7 Rxc5+ 40. Kb3 Rd5 41. Rxa7 (41. Kxb4 Rd4+ 42. Kc3 Rxf4 $18) 41... Rd3+ 42. Kxb4 Rd4+ 43. Kc3 Rxf4 $18) 39... Rxc5 {[%emt 0:00:22]} 40. Rxh7 {[%emt 0:00:05]} (40. Kxb4 Rc2 $15) 40... a5 {[%emt 0:00:33]} 41. h5 {[%emt 0:30:27]} Rd5 {[%emt 0:30:19]} (41... a4+ $142 42. Kxa4 Rc2) 42. Ra7 $18 {[%emt 0:00:36]} Rd3+ {[%emt 0:00:10]} 43. Ka4 {[%emt 0:01:07]} b3 {[%emt 0:01:31]} 44. a3 {[%emt 0:08:00]} (44. Kxa5 bxa2 45. Kb4 Rf3 $16) (44. axb3 $142 {[%cal Oh5h6] aiming for h6!} Rf3 45. h6 (45. Rxa5 Rxf4+ 46. b4 Rxf2 $18) 45... Rxf4+ 46. Kxa5 Rxf2 47. h7) 44... Rd4+ {[%emt 0:00:05]} (44... Rd2 $142 45. Ra6+ (45. Rxa5 Rxb2 46. h6 Rxf2 $16) (45. Kxb3 Rxf2 46. Ra6+ Kf7 $18) (45. Kxa5 Rxb2 46. Ka4 Rxf2 $14) 45... Kf7 46. Rxa5 Rd4+ 47. Kxb3 Rxf4 48. Ra7+ Kg8) 45. Kxb3 $18 {[%emt 0:00:08]} Rxf4 {[%emt 0:00:02]} 46. Ra6+ {[%emt 0:01:19]} (46. Rxa5 Rxf2 47. h6 Rh2 $18) 46... Kf7 {[%emt 0:00:18]} 47. Rxa5 {[%emt 0:00:04]} Rxf2 {[%emt 0:00:15]} 48. a4 {[%emt 0:02:09]} Kf6 {[%emt 0:00:10]} (48... Rf3+ $142 49. Ka2 Kf6) 49. Ra8 $18 {[%emt 0:00:27]} Rf3+ {[%emt 0:01:07]} 50. Kb4 {[%emt 0:00:15]} Rf4+ {[%emt 0:00:06]} 51. Kb5 {[%emt 0:00:10]} Rh4 {[%emt 0:00:06]} 52. Rf8+ {[%emt 0:00:19]} Ke6 {[%emt 0:00:04]} 53. a5 {[%emt 0:00:08]} Rxh5 {[%emt 0:00:06]} 54. a6 {[%emt 0:00:07]} f4+ {[%emt 0:02:48]} 55. Kb6 {[%emt 0:00:04]} Rh6 {[%emt 0:00:06]} 56. a7 {[%emt 0:00:34]} ({Inferior is} 56. Rxf4 Ke5+ 57. Kb5 Kxf4 $11) 56... Ke7+ {[%emt 0:00:03]} 57. Kb5 {[%emt 0:00:09]} Kxf8 {[%emt 0:00:29]} 58. a8=Q+ {[%emt 0:00:05]} (58. a8=B Rh2 59. b3 Rc2 $19) 58... Kg7 {[%emt 0:00:08]} 59. Qf3 {[%emt 0:00:04]} 1-0